[Event "Early-Titled-Tuesday-Blitz-August-29-2023"]
[Site "Chess.com"]
[Date "2023.08.29"]
[Round "4"]
[White "SAInt_666"]
[Black "GiorgianBarbosa"]
[Result "0-1"]
[WhiteElo "2663"]
[BlackElo "2461"]
[TimeControl "180+1"]
[EndTime "8:39:19 PDT"]
[Termination "GiorgianBarbosa won by checkmate"]

1. e4 {[%clk 0:03:00.9]} 1... c5 {[%clk 0:03:00.1]} 2. Nf3 {[%clk 0:03:01]} 2...
g6 {[%clk 0:03:00.7]} 3. d4 {[%clk 0:03:01]} 3... cxd4 {[%clk 0:03:01.6]} 4.
Qxd4 {[%clk 0:03:01.9]} 4... Nf6 {[%clk 0:03:01.4]} 5. Nc3 {[%clk 0:03:01.5]}
5... Nc6 {[%clk 0:03:01.8]} 6. Qa4 {[%clk 0:03:01.7]} 6... d6 {[%clk 0:03:01.9]}
7. e5 {[%clk 0:03:01.8]} 7... dxe5 {[%clk 0:03:02.8]} 8. Nxe5 {[%clk 0:03:02.7]}
8... Bd7 {[%clk 0:03:03.4]} 9. Nxd7 {[%clk 0:03:02.3]} 9... Nxd7 {[%clk
0:03:04.3]} 10. g3 {[%clk 0:02:54.1]} 10... Bg7 {[%clk 0:03:04.4]} 11. Bg2
{[%clk 0:02:54.3]} 11... O-O {[%clk 0:03:04.4]} 12. O-O {[%clk 0:02:51.1]} 12...
Nb6 {[%clk 0:03:03.3]} 13. Qh4 {[%clk 0:02:43.1]} 13... Nd4 {[%clk 0:02:48.6]}
14. Bh6 {[%clk 0:02:39.3]} 14... Nf5 {[%clk 0:02:46.4]} 15. Bxg7 {[%clk
0:02:17.1]} 15... Nxh4 {[%clk 0:02:43.8]} 16. Bxf8 {[%clk 0:02:18]} 16... Nf5
{[%clk 0:02:29.7]} 17. g4 {[%clk 0:02:14.1]} 17... Qxf8 {[%clk 0:02:05.3]} 18.
gxf5 {[%clk 0:02:13.3]} 18... gxf5 {[%clk 0:02:06.2]} 19. Bxb7 {[%clk 0:02:12]}
19... Rb8 {[%clk 0:02:06.8]} 20. Bf3 {[%clk 0:02:10.4]} 20... Nc4 {[%clk
0:01:59.8]} 21. Kh1 {[%clk 0:01:58.5]} 21... Rxb2 {[%clk 0:01:53.7]} 22. Nd5
{[%clk 0:01:46.6]} 22... Kh8 {[%clk 0:01:47.8]} 23. Rg1 {[%clk 0:01:42]} 23...
Nd2 {[%clk 0:01:37.9]} 24. Bg2 {[%clk 0:01:33.5]} 24... Ne4 {[%clk 0:01:28]} 25.
Bxe4 {[%clk 0:01:27.1]} 25... fxe4 {[%clk 0:01:28.9]} 26. Rae1 {[%clk
0:01:18.9]} 26... Rxc2 {[%clk 0:01:05.5]} 27. Re3 {[%clk 0:01:15.8]} 27... f5
{[%clk 0:00:29.8]} 28. Reg3 {[%clk 0:01:14]} 28... Rc8 {[%clk 0:00:30.1]} 29.
Rh3 {[%clk 0:01:02.9]} 29... f4 {[%clk 0:00:23.1]} 30. Rh4 {[%clk 0:01:00.2]}
30... f3 {[%clk 0:00:22.4]} 31. Nf4 {[%clk 0:00:58.1]} 31... Rc6 {[%clk
0:00:20.3]} 32. Ng6+ {[%clk 0:00:42]} 32... Rxg6 {[%clk 0:00:20.5]} 33. Rxg6
{[%clk 0:00:42.9]} 33... e3 {[%clk 0:00:17.4]} 34. Rgh6 {[%clk 0:00:29.7]} 34...
exf2 {[%clk 0:00:09]} 35. Rxh7+ {[%clk 0:00:29.6]} 35... Kg8 {[%clk 0:00:09.9]}
36. Rh8+ {[%clk 0:00:29.8]} 36... Kg7 {[%clk 0:00:10.4]} 37. R4h7+ {[%clk
0:00:29.2]} 37... Kg6 {[%clk 0:00:09.9]} 38. Rh6+ {[%clk 0:00:22.3]} 38... Qxh6
{[%clk 0:00:09.9]} 39. Rg8+ {[%clk 0:00:19.8]} 39... Qg7 {[%clk 0:00:09.8]} 40.
h4 {[%clk 0:00:16.4]} 40... f1=Q+ {[%clk 0:00:09.5]} 41. Kh2 {[%clk 0:00:17.3]}
41... Qg2# {[%clk 0:00:10.3]} 0-1

[Event "Early-Titled-Tuesday-Blitz-August-29-2023"]
[Site "Chess.com"]
[Date "2023.08.29"]
[Round "4"]
[White "Dewarfd"]
[Black "imdvb6307"]
[Result "0-1"]
[WhiteElo "2195"]
[BlackElo "2395"]
[TimeControl "180+1"]
[EndTime "8:39:19 PDT"]
[Termination "imdvb6307 won by resignation"]

1. d4 {[%clk 0:02:59.5]} 1... f5 {[%clk 0:02:58.5]} 2. e3 {[%clk 0:02:58.5]}
2... Nf6 {[%clk 0:02:54.7]} 3. Nf3 {[%clk 0:02:58.1]} 3... g6 {[%clk 0:02:51.2]}
4. Be2 {[%clk 0:02:57.5]} 4... Bg7 {[%clk 0:02:51.1]} 5. O-O {[%clk 0:02:56.3]}
5... O-O {[%clk 0:02:51.5]} 6. c4 {[%clk 0:02:54.4]} 6... d6 {[%clk 0:02:51.7]}
7. b4 {[%clk 0:02:53]} 7... e5 {[%clk 0:02:49.9]} 8. dxe5 {[%clk 0:02:49.9]}
8... Ng4 {[%clk 0:02:50]} 9. Bb2 {[%clk 0:02:49.2]} 9... c6 {[%clk 0:02:35.9]}
10. c5 {[%clk 0:02:33.8]} 10... Nxe5 {[%clk 0:02:33.2]} 11. Nxe5 {[%clk
0:02:29.5]} 11... dxe5 {[%clk 0:02:32.6]} 12. Bc4+ {[%clk 0:02:27.1]} 12... Kh8
{[%clk 0:02:32.7]} 13. Nd2 {[%clk 0:02:18.5]} 13... Qh4 {[%clk 0:02:22.1]} 14.
Qe2 {[%clk 0:02:03]} 14... b5 {[%clk 0:02:12]} 15. cxb6 {[%clk 0:01:45]} 15...
axb6 {[%clk 0:02:12.1]} 16. Nf3 {[%clk 0:01:45.2]} 16... Qe7 {[%clk 0:02:11.3]}
17. a3 {[%clk 0:01:44.2]} 17... Be6 {[%clk 0:01:58.5]} 18. Bxe5 {[%clk
0:01:32.2]} 18... Bxe5 {[%clk 0:01:22.4]} 19. Nxe5 {[%clk 0:01:31.5]} 19... Bxc4
{[%clk 0:01:22.7]} 20. Nxc4 {[%clk 0:01:29.7]} 20... Nd7 {[%clk 0:01:22]} 21.
Rfd1 {[%clk 0:01:22]} 21... b5 {[%clk 0:01:19.7]} 22. Na5 {[%clk 0:01:14.8]}
22... Ne5 {[%clk 0:01:17]} 23. Rac1 {[%clk 0:01:09.7]} 23... Rf6 {[%clk
0:01:10.7]} 24. Qb2 {[%clk 0:01:00.8]} 24... Kg8 {[%clk 0:00:59.6]} 25. Qd4
{[%clk 0:00:54.5]} 25... Raf8 {[%clk 0:00:45.2]} 26. h3 {[%clk 0:00:49.1]} 26...
f4 {[%clk 0:00:44.8]} 27. exf4 {[%clk 0:00:32.7]} 27... Rxf4 {[%clk 0:00:43.9]}
28. Qd6 {[%clk 0:00:30.9]} 28... Qg5 {[%clk 0:00:38.4]} 29. Qe6+ {[%clk
0:00:29.9]} 29... Kh8 {[%clk 0:00:35.2]} 30. Re1 {[%clk 0:00:25.5]} 30... Nf3+
{[%clk 0:00:33.4]} 31. Kh1 {[%clk 0:00:23]} 31... Nxe1 {[%clk 0:00:33.5]} 32.
Rxe1 {[%clk 0:00:22.1]} 32... Rxf2 {[%clk 0:00:29.5]} 33. Qxc6 {[%clk 0:00:22]}
33... Rf1+ {[%clk 0:00:25.8]} 34. Rxf1 {[%clk 0:00:21.9]} 34... Rxf1+ {[%clk
0:00:25.9]} 35. Kh2 {[%clk 0:00:22.8]} 35... Qe5+ {[%clk 0:00:24.8]} 36. g3
{[%clk 0:00:23.1]} 36... Qe2+ {[%clk 0:00:24.7]} 37. Qg2 {[%clk 0:00:22.7]}
37... Rf2 {[%clk 0:00:25.3]} 38. Qxf2 {[%clk 0:00:23]} 38... Qxf2+ {[%clk
0:00:25.6]} 39. Kh1 {[%clk 0:00:23.9]} 39... Qxg3 {[%clk 0:00:26]} 40. Nb7
{[%clk 0:00:20.3]} 40... Qxh3+ {[%clk 0:00:25.6]} 41. Kg1 {[%clk 0:00:20.2]}
41... Qg3+ {[%clk 0:00:26.3]} 42. Kh1 {[%clk 0:00:19.8]} 42... Qf3+ {[%clk
0:00:26.8]} 43. Kg1 {[%clk 0:00:20.3]} 43... Qxb7 {[%clk 0:00:27.2]} 0-1

[Event "Early-Titled-Tuesday-Blitz-August-29-2023"]
[Site "Chess.com"]
[Date "2023.08.29"]
[Round "4"]
[White "Kezin_Roman"]
[Black "M1711"]
[Result "1-0"]
[WhiteElo "2796"]
[BlackElo "2532"]
[TimeControl "180+1"]
[EndTime "8:39:21 PDT"]
[Termination "Kezin_Roman won by resignation"]

1. b4 {[%clk 0:03:00.2]} 1... d5 {[%clk 0:02:58.7]} 2. Bb2 {[%clk 0:02:59.7]}
2... Qd6 {[%clk 0:02:59.2]} 3. a3 {[%clk 0:02:57.9]} 3... e5 {[%clk 0:02:59.3]}
4. e3 {[%clk 0:02:55.3]} 4... Nd7 {[%clk 0:02:57.8]} 5. c4 {[%clk 0:02:55]} 5...
c6 {[%clk 0:02:57.7]} 6. Nf3 {[%clk 0:02:53.8]} 6... Ngf6 {[%clk 0:02:55]} 7.
cxd5 {[%clk 0:02:53.1]} 7... cxd5 {[%clk 0:02:54.7]} 8. Nc3 {[%clk 0:02:53.5]}
8... a6 {[%clk 0:02:52.1]} 9. Rc1 {[%clk 0:02:53.1]} 9... Be7 {[%clk 0:02:50.8]}
10. Be2 {[%clk 0:02:36.7]} 10... e4 {[%clk 0:02:43.3]} 11. Nd4 {[%clk
0:02:36.3]} 11... Ne5 {[%clk 0:02:43.8]} 12. Ncb5 {[%clk 0:02:33.2]} 12... axb5
{[%clk 0:02:28.2]} 13. Nxb5 {[%clk 0:02:33.9]} 13... O-O {[%clk 0:02:08.1]} 14.
Nxd6 {[%clk 0:02:32.8]} 14... Bxd6 {[%clk 0:02:09]} 15. O-O {[%clk 0:02:29.3]}
15... Bd7 {[%clk 0:02:04.4]} 16. Qb3 {[%clk 0:02:13.4]} 16... Ba4 {[%clk
0:02:00.6]} 17. Qa2 {[%clk 0:02:13]} 17... Rfe8 {[%clk 0:01:55.8]} 18. Bd4
{[%clk 0:02:12]} 18... Ned7 {[%clk 0:01:53.6]} 19. Qb2 {[%clk 0:02:11.4]} 19...
h6 {[%clk 0:01:53]} 20. f3 {[%clk 0:02:09.7]} 20... exf3 {[%clk 0:01:44.9]} 21.
Rxf3 {[%clk 0:02:09.4]} 21... Be5 {[%clk 0:01:32]} 22. Bxe5 {[%clk 0:02:04.2]}
22... Nxe5 {[%clk 0:01:31.3]} 23. Rff1 {[%clk 0:01:59.6]} 23... Ne4 {[%clk
0:01:25.2]} 24. Rc7 {[%clk 0:01:58.1]} 24... Nd6 {[%clk 0:01:11]} 25. Qd4 {[%clk
0:01:54.7]} 25... Bb5 {[%clk 0:01:04.2]} 26. d3 {[%clk 0:01:48]} 26... Bc6
{[%clk 0:01:03.6]} 27. Bh5 {[%clk 0:01:41.5]} 27... Nb5 {[%clk 0:00:48.3]} 28.
Qb6 {[%clk 0:01:07]} 28... Ra6 {[%clk 0:00:47.4]} 29. Rxc6 {[%clk 0:01:06.8]}
29... Rxb6 {[%clk 0:00:37.1]} 30. Rxb6 {[%clk 0:01:07.5]} 30... Nxa3 {[%clk
0:00:35.2]} 31. d4 {[%clk 0:01:07.6]} 31... g6 {[%clk 0:00:25.1]} 32. dxe5
{[%clk 0:01:04.5]} 32... gxh5 {[%clk 0:00:25.5]} 33. Rxb7 {[%clk 0:01:05.1]}
33... Rxe5 {[%clk 0:00:25]} 34. Rfxf7 {[%clk 0:01:02]} 34... Rxe3 {[%clk
0:00:24.6]} 35. Rfe7 {[%clk 0:00:59.7]} 35... Rxe7 {[%clk 0:00:15.5]} 36. Rxe7
{[%clk 0:01:00.3]} 36... Nc4 {[%clk 0:00:14.5]} 37. b5 {[%clk 0:00:59.6]} 37...
Kf8 {[%clk 0:00:14.5]} 38. Rd7 {[%clk 0:00:58.9]} 38... Ne3 {[%clk 0:00:06.7]}
39. b6 {[%clk 0:00:58.2]} 39... Ke8 {[%clk 0:00:06.3]} 40. b7 {[%clk 0:00:54.8]}
40... Kxd7 {[%clk 0:00:06]} 41. b8=Q {[%clk 0:00:54.7]} 41... Nc4 {[%clk
0:00:04]} 42. Qh8 {[%clk 0:00:52.4]} 42... Kd6 {[%clk 0:00:02.3]} 43. Qxh6+
{[%clk 0:00:49.5]} 43... Ke5 {[%clk 0:00:02.2]} 44. Qxh5+ {[%clk 0:00:48.5]}
44... Ke4 {[%clk 0:00:03]} 45. Kf2 {[%clk 0:00:47.4]} 45... d4 {[%clk
0:00:02.3]} 46. Qf3+ {[%clk 0:00:44.6]} 46... Ke5 {[%clk 0:00:01.6]} 47. Ke2
{[%clk 0:00:44.7]} 47... Nd6 {[%clk 0:00:01.6]} 48. Kd3 {[%clk 0:00:43.3]} 48...
Ke6 {[%clk 0:00:01.1]} 49. Kxd4 {[%clk 0:00:41.9]} 49... Nf5+ {[%clk 0:00:01.8]}
50. Kd3 {[%clk 0:00:40.7]} 50... Nd6 {[%clk 0:00:01.6]} 51. g4 {[%clk
0:00:40.2]} 1-0

[Event "Early-Titled-Tuesday-Blitz-August-29-2023"]
[Site "Chess.com"]
[Date "2023.08.29"]
[Round "4"]
[White "amintabatabaei"]
[Black "maciek_92"]
[Result "1-0"]
[WhiteElo "2956"]
[BlackElo "2718"]
[TimeControl "180+1"]
[EndTime "8:39:22 PDT"]
[Termination "amintabatabaei won on time"]

1. e4 {[%clk 0:03:00.9]} 1... c5 {[%clk 0:02:59.2]} 2. Nf3 {[%clk 0:03:01.2]}
2... e6 {[%clk 0:02:59.4]} 3. g3 {[%clk 0:02:59.3]} 3... Nc6 {[%clk 0:02:57.9]}
4. Bg2 {[%clk 0:02:59.5]} 4... e5 {[%clk 0:02:57.5]} 5. c3 {[%clk 0:02:56.3]}
5... Nf6 {[%clk 0:02:57.3]} 6. O-O {[%clk 0:02:45.7]} 6... Be7 {[%clk
0:02:55.1]} 7. d4 {[%clk 0:02:45.9]} 7... cxd4 {[%clk 0:02:52.4]} 8. cxd4 {[%clk
0:02:46.1]} 8... d6 {[%clk 0:02:46.6]} 9. d5 {[%clk 0:02:44.6]} 9... Nb8 {[%clk
0:02:44.7]} 10. Nc3 {[%clk 0:02:45.1]} 10... O-O {[%clk 0:02:45]} 11. a4 {[%clk
0:02:45.7]} 11... a5 {[%clk 0:02:35.1]} 12. Nd2 {[%clk 0:02:44.2]} 12... Na6
{[%clk 0:02:32.2]} 13. Nc4 {[%clk 0:02:44.4]} 13... Nd7 {[%clk 0:02:24.9]} 14.
Be3 {[%clk 0:02:43.5]} 14... Ndc5 {[%clk 0:02:25.3]} 15. f4 {[%clk 0:02:32.3]}
15... f6 {[%clk 0:02:00.2]} 16. Nb5 {[%clk 0:02:19.9]} 16... b6 {[%clk
0:01:54.2]} 17. f5 {[%clk 0:02:19.7]} 17... Nb4 {[%clk 0:01:52.8]} 18. g4 {[%clk
0:02:19]} 18... Ba6 {[%clk 0:01:48.8]} 19. h4 {[%clk 0:02:18.9]} 19... Rc8
{[%clk 0:01:43.2]} 20. b3 {[%clk 0:02:05.1]} 20... Rf7 {[%clk 0:01:34.8]} 21.
Kh1 {[%clk 0:01:59.8]} 21... Bf8 {[%clk 0:01:33.7]} 22. g5 {[%clk 0:01:58.6]}
22... Bxb5 {[%clk 0:01:25.8]} 23. axb5 {[%clk 0:01:57.8]} 23... Re7 {[%clk
0:01:17.5]} 24. Rg1 {[%clk 0:01:47.2]} 24... Kh8 {[%clk 0:01:08.2]} 25. Bf3
{[%clk 0:01:28.8]} 25... Nbd3 {[%clk 0:01:07.5]} 26. Bxc5 {[%clk 0:00:49.8]}
26... Nxc5 {[%clk 0:01:08.4]} 27. Ra2 {[%clk 0:00:49.8]} 27... Rb7 {[%clk
0:00:56.5]} 28. Rag2 {[%clk 0:00:48.4]} 28... a4 {[%clk 0:00:55.8]} 29. bxa4
{[%clk 0:00:42.8]} 29... Ra8 {[%clk 0:00:46.3]} 30. Nb2 {[%clk 0:00:21.9]} 30...
Be7 {[%clk 0:00:43.8]} 31. gxf6 {[%clk 0:00:16.7]} 31... Bxf6 {[%clk 0:00:44.7]}
32. h5 {[%clk 0:00:17.6]} 32... h6 {[%clk 0:00:34]} 33. Rg6 {[%clk 0:00:18.1]}
33... Rba7 {[%clk 0:00:34.5]} 34. Qd2 {[%clk 0:00:18.1]} 34... Qf8 {[%clk
0:00:30]} 35. Nc4 {[%clk 0:00:15.5]} 35... Rxa4 {[%clk 0:00:28.9]} 36. Nxd6
{[%clk 0:00:11.8]} 1-0

[Event "Early-Titled-Tuesday-Blitz-August-29-2023"]
[Site "Chess.com"]
[Date "2023.08.29"]
[Round "4"]
[White "Carlitus2004"]
[Black "tsaruk_maks"]
[Result "0-1"]
[WhiteElo "2518"]
[BlackElo "2750"]
[TimeControl "180+1"]
[EndTime "8:39:22 PDT"]
[Termination "tsaruk_maks won by resignation"]

1. Nf3 {[%clk 0:03:00.9]} 1... g6 {[%clk 0:02:59.8]} 2. g3 {[%clk 0:03:01]} 2...
Bg7 {[%clk 0:03:00.7]} 3. Bg2 {[%clk 0:03:01.5]} 3... c5 {[%clk 0:03:01.1]} 4.
O-O {[%clk 0:03:02.1]} 4... d5 {[%clk 0:03:01.8]} 5. c4 {[%clk 0:03:00.9]} 5...
dxc4 {[%clk 0:03:00.4]} 6. Na3 {[%clk 0:03:00.4]} 6... Nf6 {[%clk 0:02:59.4]} 7.
Nxc4 {[%clk 0:02:59.6]} 7... O-O {[%clk 0:03:00.3]} 8. b3 {[%clk 0:02:56.3]}
8... Nc6 {[%clk 0:02:59.1]} 9. Bb2 {[%clk 0:02:56.8]} 9... Be6 {[%clk
0:02:57.1]} 10. Rc1 {[%clk 0:02:55.3]} 10... Rc8 {[%clk 0:02:55.8]} 11. Nfe5
{[%clk 0:02:50.2]} 11... Bd5 {[%clk 0:02:55.1]} 12. Nxc6 {[%clk 0:02:44.3]}
12... Rxc6 {[%clk 0:02:50.3]} 13. Ne5 {[%clk 0:02:42.2]} 13... Bxg2 {[%clk
0:02:50.6]} 14. Kxg2 {[%clk 0:02:40]} 14... Qd5+ {[%clk 0:02:51.2]} 15. Nf3
{[%clk 0:02:39.5]} 15... Rd8 {[%clk 0:02:49.4]} 16. Qc2 {[%clk 0:02:39.5]} 16...
Bh6 {[%clk 0:02:38.3]} 17. Rfd1 {[%clk 0:02:35.6]} 17... Ne4 {[%clk 0:02:35.8]}
18. Bc3 {[%clk 0:02:02.5]} 18... Ng5 {[%clk 0:02:28.2]} 19. Re1 {[%clk
0:01:27.3]} 19... Nxf3 {[%clk 0:01:53.1]} 20. exf3 {[%clk 0:01:28.2]} 20... e6
{[%clk 0:01:52.7]} 21. Re2 {[%clk 0:01:14.7]} 21... Qd3 {[%clk 0:01:48.9]} 22.
Bf6 {[%clk 0:00:55.5]} 22... Qxe2 {[%clk 0:01:15.9]} 23. Bxd8 {[%clk 0:00:55]}
23... Rd6 {[%clk 0:01:16.4]} 24. Be7 {[%clk 0:00:38.3]} 24... Rxd2 {[%clk
0:01:06.1]} 25. Qxc5 {[%clk 0:00:38.4]} 25... Qxf2+ {[%clk 0:01:06.7]} 26. Qxf2
{[%clk 0:00:39.2]} 26... Rxf2+ {[%clk 0:01:07.3]} 27. Kxf2 {[%clk 0:00:40.1]}
27... Bxc1 {[%clk 0:01:07.6]} 28. g4 {[%clk 0:00:37.9]} 28... f5 {[%clk
0:01:00.3]} 29. gxf5 {[%clk 0:00:36]} 29... exf5 {[%clk 0:00:59.4]} 30. Bc5
{[%clk 0:00:33.4]} 30... b6 {[%clk 0:00:56.3]} 31. Bd6 {[%clk 0:00:32.9]} 31...
Kf7 {[%clk 0:00:56.2]} 32. a4 {[%clk 0:00:30.9]} 32... Ke6 {[%clk 0:00:54.2]}
33. Bc7 {[%clk 0:00:26.3]} 33... Kd5 {[%clk 0:00:50.9]} 34. Ke2 {[%clk
0:00:18.4]} 34... Kd4 {[%clk 0:00:42.9]} 35. Bb8 {[%clk 0:00:18.6]} 35... a6
{[%clk 0:00:42.2]} 36. Ba7 {[%clk 0:00:19.2]} 36... Kc3 {[%clk 0:00:42.6]} 37.
Bxb6 {[%clk 0:00:12.6]} 37... Kxb3 {[%clk 0:00:43.2]} 38. a5 {[%clk 0:00:13.1]}
38... Bf4 {[%clk 0:00:43.7]} 39. h3 {[%clk 0:00:13.1]} 39... Kc4 {[%clk
0:00:44.2]} 40. Kf2 {[%clk 0:00:10.7]} 40... Bd2 {[%clk 0:00:40.8]} 41. Kg3
{[%clk 0:00:08.8]} 41... Kb5 {[%clk 0:00:39.6]} 42. Kh4 {[%clk 0:00:09.3]} 42...
Bxa5 {[%clk 0:00:39.9]} 43. Be3 {[%clk 0:00:08.9]} 43... Bd8+ {[%clk 0:00:39.8]}
44. Kg3 {[%clk 0:00:08.7]} 44... a5 {[%clk 0:00:39.6]} 45. Kf4 {[%clk
0:00:08.6]} 45... a4 {[%clk 0:00:39.9]} 46. Bd4 {[%clk 0:00:08.9]} 46... Kc4
{[%clk 0:00:36.6]} 47. Bg7 {[%clk 0:00:08.7]} 47... a3 {[%clk 0:00:35.8]} 48.
Ke5 {[%clk 0:00:09.3]} 48... a2 {[%clk 0:00:34.7]} 49. Ke6 {[%clk 0:00:09.9]}
49... Bb6 {[%clk 0:00:35.1]} 0-1

[Event "Early-Titled-Tuesday-Blitz-August-29-2023"]
[Site "Chess.com"]
[Date "2023.08.29"]
[Round "4"]
[White "mikerahal"]
[Black "Ural_bogatyr"]
[Result "1/2-1/2"]
[WhiteElo "2332"]
[BlackElo "2573"]
[TimeControl "180+1"]
[EndTime "8:39:23 PDT"]
[Termination "Game drawn by repetition"]

1. e4 {[%clk 0:03:00.9]} 1... e5 {[%clk 0:03:00]} 2. Nf3 {[%clk 0:03:00.2]} 2...
Nc6 {[%clk 0:03:00.5]} 3. Bb5 {[%clk 0:03:00.2]} 3... a6 {[%clk 0:03:00.5]} 4.
Ba4 {[%clk 0:03:00.4]} 4... Bc5 {[%clk 0:03:00.6]} 5. O-O {[%clk 0:02:55.9]}
5... Nge7 {[%clk 0:03:00.2]} 6. c3 {[%clk 0:02:49]} 6... Ba7 {[%clk 0:02:57.1]}
7. d4 {[%clk 0:02:48.2]} 7... Ng6 {[%clk 0:02:57.2]} 8. dxe5 {[%clk 0:02:40.7]}
8... Ncxe5 {[%clk 0:02:55.3]} 9. Nxe5 {[%clk 0:02:41.1]} 9... Nxe5 {[%clk
0:02:56.1]} 10. Kh1 {[%clk 0:02:36.5]} 10... O-O {[%clk 0:02:49.6]} 11. f4
{[%clk 0:02:35.1]} 11... Nc6 {[%clk 0:02:48]} 12. Nd2 {[%clk 0:02:30.1]} 12...
b5 {[%clk 0:02:46.4]} 13. Bc2 {[%clk 0:02:29.5]} 13... d6 {[%clk 0:02:46]} 14.
f5 {[%clk 0:02:25.6]} 14... f6 {[%clk 0:02:40.6]} 15. Nf3 {[%clk 0:02:19.8]}
15... Ne5 {[%clk 0:02:38.9]} 16. Bb3+ {[%clk 0:02:12.1]} 16... Kh8 {[%clk
0:02:36.6]} 17. Nh4 {[%clk 0:02:12.1]} 17... Qe8 {[%clk 0:02:29.2]} 18. Bf4
{[%clk 0:02:10.5]} 18... Bb7 {[%clk 0:02:21.7]} 19. Bxe5 {[%clk 0:02:04.9]}
19... fxe5 {[%clk 0:02:05.6]} 20. Ng6+ {[%clk 0:01:58.9]} 20... hxg6 {[%clk
0:02:01.7]} 21. Rf3 {[%clk 0:01:47]} 21... d5 {[%clk 0:01:54.1]} 22. Rh3+ {[%clk
0:01:35.6]} 22... Kg8 {[%clk 0:01:53.8]} 23. exd5 {[%clk 0:01:27.4]} 23... Kf7
{[%clk 0:01:09.3]} 24. d6+ {[%clk 0:01:21.3]} 24... Kf6 {[%clk 0:01:06.1]} 25.
fxg6 {[%clk 0:00:57.1]} 25... Qxg6 {[%clk 0:00:59.1]} 26. Qf1+ {[%clk
0:00:45.2]} 26... Qf5 {[%clk 0:00:57.4]} 27. Qxf5+ {[%clk 0:00:39.4]} 27... Kxf5
{[%clk 0:00:56.9]} 28. Rf1+ {[%clk 0:00:40.3]} 28... Ke4 {[%clk 0:00:27.3]} 29.
Re1+ {[%clk 0:00:39.6]} 29... Kf4 {[%clk 0:00:26.7]} 30. Rf1+ {[%clk 0:00:35.5]}
30... Kg5 {[%clk 0:00:06.8]} 31. Rg3+ {[%clk 0:00:34.4]} 31... Kh6 {[%clk
0:00:05.4]} 32. Rh3+ {[%clk 0:00:25]} 32... Kg6 {[%clk 0:00:05]} 33. Rg3+ {[%clk
0:00:17.4]} 33... Kh7 {[%clk 0:00:03.5]} 34. Rh3+ {[%clk 0:00:14.8]} 34... Kg6
{[%clk 0:00:03.7]} 35. Rg3+ {[%clk 0:00:12.8]} 35... Kh6 {[%clk 0:00:04]} 36.
Rh3+ {[%clk 0:00:05.7]} 36... Kg6 {[%clk 0:00:03.7]} 1/2-1/2

[Event "Early-Titled-Tuesday-Blitz-August-29-2023"]
[Site "Chess.com"]
[Date "2023.08.29"]
[Round "4"]
[White "yuki_chess123"]
[Black "Casper"]
[Result "0-1"]
[WhiteElo "2196"]
[BlackElo "2405"]
[TimeControl "180+1"]
[EndTime "8:39:23 PDT"]
[Termination "Casper won by resignation"]

1. e4 {[%clk 0:02:59.2]} 1... c5 {[%clk 0:03:00.1]} 2. Nf3 {[%clk 0:02:59]} 2...
d6 {[%clk 0:03:00.4]} 3. Bb5+ {[%clk 0:02:59.1]} 3... Bd7 {[%clk 0:02:58.1]} 4.
c4 {[%clk 0:03:00]} 4... g5 {[%clk 0:02:54.4]} 5. h3 {[%clk 0:02:48.6]} 5... Nf6
{[%clk 0:02:53.3]} 6. Nc3 {[%clk 0:02:47.1]} 6... a6 {[%clk 0:02:47.7]} 7. Bxd7+
{[%clk 0:02:46.5]} 7... Qxd7 {[%clk 0:02:47.6]} 8. d3 {[%clk 0:02:41.2]} 8...
Rg8 {[%clk 0:02:46.7]} 9. g4 {[%clk 0:02:40.9]} 9... h6 {[%clk 0:02:27.9]} 10.
b4 {[%clk 0:02:30.3]} 10... cxb4 {[%clk 0:02:27.6]} 11. Na4 {[%clk 0:02:30]}
11... Qc6 {[%clk 0:02:15.6]} 12. Be3 {[%clk 0:02:28.4]} 12... Nbd7 {[%clk
0:02:14.7]} 13. Nd4 {[%clk 0:02:21.1]} 13... Qc7 {[%clk 0:02:14]} 14. Rc1 {[%clk
0:02:17.6]} 14... Nc5 {[%clk 0:02:06.6]} 15. Rb1 {[%clk 0:01:50.1]} 15... Nfd7
{[%clk 0:01:41.3]} 16. Rxb4 {[%clk 0:01:43.6]} 16... Qa5 {[%clk 0:01:39.5]} 17.
a3 {[%clk 0:01:17.2]} 17... Ne5 {[%clk 0:01:09.7]} 18. Nxc5 {[%clk 0:01:05.9]}
18... dxc5 {[%clk 0:01:07.2]} 19. Nb3 {[%clk 0:01:06.1]} 19... Qxa3 {[%clk
0:01:02.1]} 20. Bxc5 {[%clk 0:01:06.3]} 20... e6 {[%clk 0:00:53.1]} 21. Bxf8
{[%clk 0:01:05.7]} 21... Rxf8 {[%clk 0:00:43.5]} 22. Rxb7 {[%clk 0:01:06.6]}
22... O-O-O {[%clk 0:00:42.4]} 23. Qb1 {[%clk 0:00:44.6]} 23... Kxb7 {[%clk
0:00:22.7]} 24. Na5+ {[%clk 0:00:36.8]} 24... Kc7 {[%clk 0:00:23]} 25. Qb7+
{[%clk 0:00:37]} 25... Kd6 {[%clk 0:00:23.5]} 26. c5+ {[%clk 0:00:17.5]} 26...
Qxc5 {[%clk 0:00:21.1]} 27. Qxa6+ {[%clk 0:00:16.7]} 27... Ke7 {[%clk
0:00:20.3]} 28. O-O {[%clk 0:00:12.3]} 28... Rxd3 {[%clk 0:00:19.8]} 29. Rb1
{[%clk 0:00:10.8]} 29... Rg3+ {[%clk 0:00:17.6]} 30. Kf1 {[%clk 0:00:09.8]}
30... Rxh3 {[%clk 0:00:15.2]} 31. Qb7+ {[%clk 0:00:04.8]} 31... Kf6 {[%clk
0:00:14.6]} 32. Qb2 {[%clk 0:00:03.1]} 32... Rh1+ {[%clk 0:00:12.8]} 33. Kg2
{[%clk 0:00:02.9]} 33... Rxb1 {[%clk 0:00:13.6]} 34. Qxb1 {[%clk 0:00:02.9]}
34... Qxa5 {[%clk 0:00:13]} 0-1